bitfinex-derivatives/quotes_SOLF0:USTF0_20240911
["timestamp","ask_amount","ask_price","bid_price","bid_amount"]
[1726012801686,2.7891,135.73,135.53,4.0795]
[1726012804772,15.77790981,135.8,135.53,21.76498315]
[1726012804978,3.9825,135.79,135.54,17.68548315]
[1726012805178,3.9825,135.79,135.55,17.68548315]
[1726012805977,3.9825,135.79,135.56,17.68548315]
[1726012806177,3.9825,135.79,135.57,17.68548315]
[1726012806374,3.9825,135.79,135.58,4.1331]
[1726012806980,3.9825,135.79,135.59,1.0]
[1726012807180,3.9825,135.79,135.6,1.35392352]
[1726012807881,3.9825,135.79,135.61,1.35392352]
[1726012808082,3.9825,135.79,135.6,1.35392352]
[1726012808275,3.9825,135.79,135.59,4.71094628]
[1726012808276,3.9825,135.79,135.61,1.35392352]
[1726012808480,3.9825,135.79,135.62,1.35386011]
[1726012808675,3.9825,135.79,135.63,5.36386011]
[1726012808881,3.9825,135.79,135.64,1.35386011]
[1726012812384,3.9825,135.79,135.63,4.01]
[1726012812684,3.9825,135.79,135.64,1.353955]
[1726012812987,3.9825,135.79,135.63,4.01]
[1726012813985,3.9825,135.79,135.64,1.35404189]
[1726012816488,3.9825,135.79,135.65,1.35385023]
[1726012816686,3.9825,135.79,135.66,1.35385023]
[1726012816887,3.9825,135.79,135.66,3.63432559]
[1726012817084,3.9825,135.79,135.63,4.01]
[1726012817281,3.9825,135.79,135.64,1.35388934]
[1726012819897,3.9825,135.79,135.63,4.01]
[1726012820193,3.9825,135.79,135.64,1.35389168]
[1726012820389,3.9825,135.79,135.65,1.3539075]
[1726012820589,3.9825,135.79,135.63,4.01]
[1726012820790,3.9825,135.79,135.64,1.35395129]
[1726012824497,3.9825,135.79,135.63,4.01]
[1726012824691,3.9825,135.79,135.64,1.35391547]
[1726012824991,3.9825,135.79,135.63,4.01]
[1726012825189,3.9825,135.79,135.64,1.35391547]
[1726012828394,3.9825,135.79,135.63,4.01]
[1726012828590,3.9825,135.79,135.64,1.35385041]
[1726012831488,3.9825,135.79,135.74,3.6832]
[1726012831699,3.9825,135.79,135.66,7.3708]
[1726012831887,3.9825,135.79,135.67,1.35378938]
[1726012832093,3.9825,135.79,135.73,3.6835]
[1726012832287,3.9825,135.79,135.75,9.05]
[1726012833295,3.9825,135.79,135.78,9.05]
[1726012838002,1.328,135.79,135.78,9.05]
[1726012838206,2.7242,135.83,135.78,9.05]
[1726012838407,4.0432,135.83,135.79,9.05]
[1726012840601,4.0432,135.83,135.81,9.05]
[1726012840907,4.0432,135.83,135.77,3.6823]
[1726012841099,4.0432,135.83,135.78,3.70479262]
[1726012841302,4.0432,135.83,135.78,9.05]
[1726012841498,9.05,135.82,135.7,4.0413]
[1726012841705,9.05,135.82,135.75,9.05]
[1726012842107,9.05,135.82,135.76,12.75552909]
[1726012842308,9.05,135.82,135.76,9.05]
[1726012842714,9.05,135.82,135.76,12.7010306]
[1726012848116,9.05,135.81,135.7,4.0413]
[1726012848315,9.05,135.81,135.75,9.05]
[1726012849622,9.05,135.82,135.76,9.05]
[1726012850415,13.0932,135.83,135.77,9.05]
[1726012852313,4.0432,135.83,135.77,12.7322]
[1726012853216,13.0932,135.83,135.77,12.7322]
[1726012853519,13.0932,135.83,135.77,9.05]
[1726012855212,13.0932,135.83,135.77,12.7325]
[1726012862018,4.0432,135.83,135.77,12.7325]
[1726012862817,4.0432,135.83,135.8,9.05]
[1726012863223,4.0432,135.83,135.81,9.05]
[1726012863423,2.7028,135.83,135.82,9.05]
[1726012863622,2.7028,135.83,135.7,4.1859]
[1726012863623,2.7028,135.83,135.72,7.3677]
[1726012863822,2.7028,135.83,135.79,9.05]
[1726012866624,2.7028,135.83,135.7,4.1859]
[1726012866625,9.05,135.82,135.7,4.1859]
[1726012866821,10.379,135.82,135.76,9.05]
[1726012867126,10.379,135.82,135.76,12.80100567]
[1726012867427,10.379,135.82,135.76,9.05]
[1726012868829,9.05,135.81,135.75,9.05]
[1726012872636,9.05,135.81,135.7,4.1859]
[1726012872637,9.05,135.79,135.7,4.1859]
[1726012872838,11.7692,135.78,135.72,9.05]
[1726012873133,10.3481,135.77,135.71,9.05]
[1726012876634,10.3481,135.77,135.72,9.05]
[1726012877232,1.2981,135.77,135.72,9.05]
[1726012883531,9.05,135.76,135.69,7.35888014]
[1726012883734,9.05,135.76,135.69,9.05]
[1726012883939,9.05,135.76,135.68,3.59764185]
[1726012884140,9.05,135.74,135.68,9.05]
[1726012884940,1.2981,135.77,135.7,9.05]
[1726012884941,9.05,135.76,135.7,9.05]
[1726012885342,9.05,135.76,135.71,9.05]
[1726012885844,10.3481,135.77,135.71,9.05]
[1726012887939,1.2981,135.77,135.72,9.05]
[1726012888340,11.7692,135.78,135.72,9.05]
[1726012889049,2.7192,135.78,135.72,12.7338]
[1726012889235,9.05,135.76,135.65,2.6883]
[1726012889442,2.7192,135.78,135.68,9.05]
[1726012889443,9.05,135.74,135.68,9.05]
[1726012889741,9.05,135.76,135.7,9.05]
[1726012890343,1.3156,135.77,135.73,9.05]
[1726012890545,9.05,135.77,135.66,1.3333]
[1726012890748,9.05,135.77,135.7,9.05]
[1726012892849,4.0684,135.78,135.69,9.05]
[1726012892850,9.05,135.75,135.69,9.05]
[1726012893050,9.05,135.74,135.69,9.05]
[1726012894046,9.05,135.74,135.68,9.05]
[1726012894454,9.05,135.74,135.67,3.6851]
[1726012894654,9.05,135.73,135.67,9.05]
[1726012895050,9.05,135.69,135.63,3.6861]
[1726012895251,9.05,135.69,135.6,1.3004]
[1726012895252,2.7062,135.72,135.66,9.05]
[1726012896548,2.7062,135.72,135.67,9.05]
[1726012897249,1.3492,135.78,135.7,9.05]
[1726012897450,9.05,135.76,135.7,9.05]
[1726012898349,9.05,135.75,135.69,9.05]
[1726012900953,9.05,135.76,135.7,9.05]
[1726012906063,9.05,135.76,135.7,12.7342]
[1726012906758,1.4101,135.77,135.71,12.7341]
[1726012910565,1.2782,135.78,135.73,9.05]
[1726012910765,116.47640825,135.79,135.74,9.05]
[1726012910953,116.47640825,135.79,135.67,1.3287]
[1726012910954,1.2735,135.81,135.76,9.05]
[1726012911355,1.2735,135.81,135.77,9.05]
[1726012911663,9.05,135.83,135.77,9.05]
[1726012911865,2.6884,135.86,135.78,9.05]
[1726012911866,9.05,135.84,135.78,9.05]
[1726012912462,10.3235,135.85,135.78,9.05]
[1726012913062,10.3235,135.85,135.78,12.732]
[1726012913266,10.3235,135.85,135.78,9.05]
[1726012914565,10.3235,135.85,135.8,9.05]
[1726012914869,2.6884,135.86,135.81,9.05]
[1726012915571,11.7384,135.86,135.81,9.05]
[1726012917463,9.05,135.87,135.81,9.05]
[1726012920569,9.05,135.86,135.8,9.05]
[1726012924580,9.05,135.85,135.8,9.05]
[1726012926972,9.05,135.85,135.78,9.05]
[1726012927881,4.97737743,135.9,135.78,9.05]
[1726012927882,9.05,135.84,135.78,9.05]
[1726012928583,9.05,135.84,135.77,9.05]
[1726012930075,116.39276592,135.89,135.74,4.0223]
[1726012930076,9.05,135.8,135.74,4.0223]
[1726012930274,9.05,135.8,135.73,9.05]
[1726012930479,9.05,135.8,135.66,4.0814]
[1726012930778,9.05,135.8,135.73,9.05]
[1726012932472,9.05,135.8,135.73,12.7334]
[1726012932677,9.05,135.8,135.73,9.05]
[1726012936982,9.05,135.8,135.73,12.7335]
[1726012938180,9.05,135.8,135.73,9.05]
[1726012939075,9.05,135.8,135.73,12.80846584]
[1726012939375,9.05,135.81,135.75,9.05]
[1726012941387,1.288,135.82,135.75,9.05]
[1726012941582,1.288,135.82,135.76,9.05]
[1726012942587,2.7763,135.83,135.76,12.7327]
[1726012942887,125.48003959,135.84,135.78,9.05]
[1726012944483,116.43003959,135.84,135.79,9.05]
[1726012947087,116.43003959,135.84,135.78,9.05]
[1726012955988,116.43003959,135.84,135.79,9.05]
[1726012971117,116.43003959,135.84,135.81,9.05]
[1726012973318,9.05,135.83,135.74,3.9598]
[1726012973616,13.1534,135.83,135.77,9.05]
[1726012981707,4.1034,135.83,135.78,9.05]
[1726012982812,13.1534,135.83,135.78,9.05]
[1726012985713,9.05,135.8,135.73,3.7625179]
[1726012985916,9.05,135.8,135.74,9.05]
[1726012986221,9.05,135.8,135.74,12.7332]
[1726012988326,9.05,135.78,135.66,4.0772]
[1726012988523,7.78931599,135.83,135.66,4.0772]
[1726012988524,9.05,135.75,135.66,4.0772]
[1726012988730,9.05,135.75,135.68,9.05]
[1726012989227,9.05,135.75,135.69,9.05]
[1726012990123,9.05,135.75,135.65,3.6862469]
[1726012990124,9.05,135.72,135.65,3.6862469]
[1726012990315,9.05,135.71,135.61,4.0068]
[1726012990522,11.6883,135.71,135.64,9.05]
[1726012991119,2.6383,135.71,135.66,9.05]
[1726012991626,2.6383,135.71,135.67,9.05]
[1726012992425,2.6383,135.71,135.67,12.7352]
[1726012994027,9.05,135.74,135.67,12.7352]
[1726012995324,9.05,135.74,135.61,7.61065382]
[1726012995325,11.6801,135.75,135.69,9.05]
[1726012996825,11.6801,135.75,135.7,9.05]
[1726012999827,11.6801,135.75,135.67,3.685]
[1726013000027,11.6801,135.75,135.61,7.61065382]
[1726013000028,9.05,135.74,135.68,12.79179428]
[1726013000630,11.6801,135.75,135.69,9.05]
[1726013001327,2.6301,135.75,135.71,9.05]
[1726013002531,3.68591599,135.83,135.73,9.05]
[1726013002730,9.05,135.79,135.73,9.05]
[1726013003233,9.05,135.78,135.72,9.05]
[1726013003429,9.05,135.75,135.68,3.74179428]
[1726013003634,9.05,135.75,135.69,9.05]
[1726013003938,9.05,135.75,135.69,16.44083529]
[1726013004834,9.05,135.75,135.69,12.7345]
[1726013005232,9.05,135.75,135.69,16.42278257]
[1726013005636,3.9267,135.77,135.69,16.42278257]
[1726013005637,12.9767,135.77,135.72,9.05]
[1726013007029,9.05,135.76,135.7,12.7342]
[1726013008028,3.9267,135.77,135.71,3.6841]
[1726013008233,12.9767,135.77,135.71,3.6841]
[1726013009731,3.9267,135.77,135.72,12.7338]
[1726013010337,3.9267,135.77,135.72,9.05]
[1726013010741,12.9767,135.77,135.71,12.734]
[1726013012426,12.9767,135.77,135.71,9.05]
[1726013012834,12.9767,135.77,135.69,3.64701919]
[1726013013034,12.9767,135.77,135.7,9.05]
[1726013013635,12.9767,135.77,135.7,12.7342]
[1726013014239,9.05,135.75,135.7,9.05]
[1726013015138,9.05,135.75,135.7,12.7343]
[1726013015836,9.05,135.75,135.7,9.05]
[1726013017034,3.9267,135.77,135.68,9.05]
[1726013017035,9.05,135.74,135.68,9.05]
[1726013017244,9.05,135.74,135.67,9.05]
[1726013017640,9.05,135.74,135.67,12.735]
[1726013023040,3.9267,135.77,135.67,9.05]
[1726013023247,3.9267,135.77,135.66,3.6854]
[1726013023248,9.05,135.73,135.66,3.6854]
[1726013023445,9.05,135.73,135.66,12.7354]
[1726013023646,9.05,135.71,135.66,9.05]
[1726013024151,9.05,135.7,135.64,9.05]
[1726013024446,3.9267,135.77,135.62,12.7364]
[1726013024447,9.05,135.67,135.62,12.7364]
[1726013024752,9.05,135.67,135.62,9.05]
[1726013025858,9.05,135.67,135.6,9.05]
[1726013026062,9.05,135.66,135.59,1.3995]
[1726013026256,9.05,135.66,135.59,14.17066164]
[1726013026452,9.05,135.66,135.6,9.05]
[1726013027245,9.05,135.66,135.61,3.6866]
[1726013027443,9.05,135.67,135.61,3.6866]
[1726013027655,9.05,135.67,135.62,9.05]
[1726013028156,9.05,135.67,135.62,12.7365]
[1726013028654,9.05,135.67,135.62,9.05]
[1726013029558,9.05,135.67,135.62,12.7365]
[1726013031057,9.05,135.67,135.62,9.05]
[1726013031264,3.9733,135.72,135.62,9.05]
[1726013031445,9.05,135.68,135.62,9.05]
[1726013032160,9.05,135.66,135.6,9.05]
[1726013032554,9.05,135.66,135.6,12.737]
[1726013032951,9.05,135.65,135.59,17.87563285]
[1726013033155,9.05,135.64,135.58,15.51611039]
[1726013033356,9.05,135.64,135.45,17.68948469]
[1726013033357,9.05,135.63,135.57,9.05]
[1726013033553,9.05,135.63,135.57,16.42917123]
[1726013034158,9.05,135.63,135.57,12.7378]
[1726013034354,9.05,135.64,135.57,9.05]
[1726013034555,9.05,135.64,135.57,12.67537488]
[1726013034954,9.05,135.64,135.58,3.6875]
[1726013040368,9.05,135.64,135.58,12.7375]
[1726013040557,9.05,135.65,135.59,3.6873]
[1726013041360,9.05,135.65,135.58,12.7375]
[1726013041869,9.05,135.65,135.59,3.6873]
[1726013042261,9.05,135.65,135.58,9.05]
[1726013042465,9.05,135.65,135.59,3.6873]
[1726013043270,9.05,135.65,135.6,12.737]
[1726013043464,9.05,135.66,135.6,12.737]
[1726013043873,3.9733,135.72,135.62,9.05]
[1726013044066,9.05,135.68,135.62,9.05]
[1726013044273,9.05,135.67,135.61,12.7367]
[1726013045969,9.05,135.66,135.59,9.05]
[1726013046467,9.05,135.66,135.59,12.78082157]
[1726013046869,9.05,135.66,135.6,3.6869]
[1726013047572,9.05,135.66,135.6,12.7369]
[1726013048972,3.9733,135.72,135.6,12.7369]
[1726013049171,9.05,135.67,135.6,12.7369]
[1726013050574,9.05,135.67,135.61,3.6868]
[1726013050774,9.05,135.67,135.6,9.05]
[1726013050978,3.9733,135.72,135.62,9.05]
[1726013051269,3.9733,135.72,135.64,9.05]
[1726013051270,9.05,135.69,135.64,9.05]
[1726013051774,9.05,135.69,135.64,12.736]
[1726013051972,9.05,135.69,135.64,9.05]
[1726013052272,9.05,135.69,135.63,3.6861]
[1726013053270,9.05,135.69,135.64,12.736]
[1726013053979,9.05,135.68,135.6,4.0244]
[1726013054176,9.05,135.68,135.61,9.05]
[1726013055273,9.05,135.68,135.61,12.7367]
[1726013057381,9.05,135.66,135.61,9.05]
[1726013057873,9.05,135.68,135.61,9.05]
[1726013058074,9.05,135.68,135.62,9.05]
[1726013058381,9.05,135.68,135.62,12.7365]
[1726013058576,9.05,135.66,135.61,9.05]
[1726013059075,9.05,135.66,135.59,3.73082157]
[1726013059076,9.05,135.66,135.59,12.78082157]
[1726013060178,9.05,135.64,135.58,9.05]
[1726013060674,9.05,135.62,135.56,9.05]
[1726013061276,9.05,135.62,135.57,3.6878]
[1726013066079,9.05,135.62,135.56,12.71224435]
[1726013066981,9.05,135.62,135.57,3.6878]
[1726013067184,9.05,135.62,135.56,12.71224435]
[1726013067483,9.05,135.61,135.56,3.688]
[1726013068477,9.05,135.62,135.56,3.688]
[1726013068681,9.05,135.62,135.57,3.6879]
[1726013069682,9.05,135.64,135.57,3.6879]
[1726013069875,9.05,135.64,135.58,3.6876]
[1726013071785,9.05,135.64,135.57,3.6878]
[1726013072385,9.05,135.62,135.57,3.6878]
[1726013072876,9.05,135.62,135.56,3.6881]
[1726013074075,9.05,135.61,135.56,3.6881]
[1726013076480,9.05,135.62,135.57,3.6879]
[1726013081789,9.05,135.62,135.56,12.738]
[1726013083685,9.05,135.61,135.56,12.738]
[1726013084787,9.05,135.61,135.56,3.688]
[1726013085189,9.05,135.61,135.55,7.43580453]
[1726013087097,9.05,135.61,135.56,3.6881]
[1726013090594,9.05,135.61,135.55,7.43580453]
[1726013090894,1.3243,135.65,135.52,4.0407]
[1726013090895,9.05,135.59,135.53,9.05]
[1726013091286,9.05,135.59,135.54,3.6885]
[1726013092599,9.05,135.57,135.52,3.64089611]
[1726013092801,9.05,135.55,135.47,4.0143]
[1726013092993,9.05,135.55,135.48,9.05]
[1726013093191,9.05,135.54,135.5,3.6898]
[1726013094799,9.05,135.53,135.47,7.63490743]
[1726013095306,9.05,135.53,135.48,3.6902]
[1726013096791,3.8803,135.59,135.48,3.6902]
[1726013097001,9.05,135.54,135.47,16.68490743]
[1726013098905,9.05,135.52,135.46,9.05]
[1726013099493,9.05,135.52,135.47,3.6905]
[1726013099698,8.99887735,135.52,135.47,7.41198505]
[1726013100104,8.99887735,135.52,135.47,3.6905]
[1726013101107,8.99887735,135.52,135.46,7.29519369]
[1726013101304,8.99887735,135.52,135.46,3.60439369]
[1726013101512,3.8803,135.59,135.48,9.05]
[1726013101698,3.8803,135.59,135.5,12.7397]
[1726013101896,9.05,135.56,135.5,9.05]
[1726013102098,3.8803,135.59,135.39,4.0224]
[1726013102099,9.05,135.57,135.51,9.05]
[1726013102303,9.05,135.57,135.51,16.51494483]
[1726013102703,3.8803,135.59,135.54,9.05]
[1726013102904,3.75054768,135.65,135.57,9.05]
[1726013103104,9.05,135.63,135.57,9.05]
[1726013103311,7.79574768,135.65,135.52,3.9864]
[1726013103312,9.05,135.61,135.52,3.9864]
[1726013103607,9.05,135.6,135.54,9.05]
[1726013105003,9.05,135.6,135.54,12.7387]
[1726013110512,9.05,135.6,135.54,9.05]
[1726013111213,9.05,135.6,135.54,12.7387]
[1726013111407,9.05,135.6,135.55,9.05]
[1726013111615,9.05,135.63,135.56,9.05]
[1726013111811,9.05,135.63,135.56,12.738]
[1726013112016,9.05,135.63,135.56,9.05]
[1726013113115,9.05,135.63,135.56,12.7381]
[1726013113317,9.05,135.61,135.56,9.05]
[1726013113515,9.05,135.61,135.55,9.05]
[1726013114613,9.05,135.57,135.52,3.9864]
[1726013114918,9.05,135.57,135.52,11.7564]
[1726013115113,9.05,135.57,135.52,9.05]
[1726013116218,9.05,135.56,135.51,9.05]
[1726013118125,9.05,135.56,135.51,12.7395]
[1726013118928,9.05,135.56,135.51,9.05]
[1726013120629,9.05,135.57,135.51,12.7394]
[1726013121629,9.05,135.57,135.52,9.05]
[1726013123535,9.05,135.57,135.5,3.6897]
[1726013123836,9.05,135.57,135.51,9.05]
[1726013124233,9.05,135.57,135.51,12.75267744]
[1726013126033,9.05,135.57,135.51,16.44217744]
[1726013126735,9.05,135.57,135.51,7.39217744]
[1726013126938,9.05,135.57,135.51,3.70267744]
[1726013127235,9.05,135.57,135.5,12.7397]
[1726013127838,9.05,135.57,135.51,3.65314018]
[1726013128440,10.3384,135.59,135.52,9.05]
[1726013128634,2.6994,135.6,135.55,9.05]
[1726013129027,9.05,135.59,135.47,2.7823]
[1726013129233,9.05,135.59,135.53,9.05]
[1726013130834,9.05,135.59,135.54,9.05]
[1726013131339,9.05,135.59,135.54,12.7387]
[1726013132936,9.05,135.59,135.54,9.05]
[1726013136640,9.05,135.59,135.53,9.05]
[1726013139740,9.05,135.58,135.51,12.7394]
[1726013139936,9.05,135.56,135.5,9.05]
[1726013140444,1.3681,135.59,135.53,9.05]
[1726013140445,9.05,135.58,135.53,9.05]
[1726013144746,10.4181,135.59,135.53,9.05]
[1726013146741,10.4181,135.59,135.52,3.6892]
[1726013146936,10.4181,135.59,135.52,12.7392]
[1726013147544,10.4181,135.59,135.52,9.05]
[1726013147741,9.05,135.58,135.51,3.6894]
[1726013148252,9.05,135.57,135.51,9.05]
[1726013148555,9.05,135.55,135.48,9.05]
[1726013148755,9.05,135.54,135.48,9.05]
[1726013149144,9.05,135.54,135.47,15.45481594]
[1726013149343,5.078799,135.59,135.47,15.45481594]
[1726013149344,9.05,135.52,135.47,9.05]
[1726013152350,9.05,135.52,135.46,3.6909]
[1726013155050,9.05,135.51,135.45,12.7411]
[1726013157858,9.05,135.51,135.44,3.6913]
[1726013158158,9.05,135.51,135.44,9.05]
[1726013158358,9.05,135.51,135.5,0.9]
[1726013160560,9.05,135.52,135.5,0.9]
[1726013161160,9.05,135.55,135.5,0.9]
[1726013161362,9.05,135.53,135.5,0.9]
[1726013163762,9.05,135.52,135.5,0.9]
[1726013164058,5.078799,135.59,135.5,0.9]
[1726013164249,9.05,135.52,135.5,0.9]
[1726013165462,1.3681,135.59,135.5,0.9]
[1726013165665,9.05,135.55,135.5,0.9]
[1726013166261,1.3681,135.59,135.5,9.95]
[1726013166563,9.05,135.56,135.5,13.6397]
[1726013166768,9.05,135.56,135.5,9.95]
[1726013167972,9.05,135.55,135.5,0.9]
[1726013170456,9.05,135.56,135.5,9.95]
[1726013171568,9.05,135.56,135.5,10.62]
[1726013172866,9.05,135.58,135.51,9.05]
[1726013173662,9.05,135.58,135.51,12.7394]
[1726013175072,9.05,135.58,135.52,9.05]
[1726013176967,9.05,135.58,135.52,12.7392]
[1726013177971,9.05,135.57,135.5,5.2597]
[1726013178175,9.05,135.55,135.5,10.62]
[1726013178374,9.05,135.55,135.5,9.72]
[1726013179068,1.3681,135.59,135.51,9.05]
[1726013179266,10.4181,135.59,135.53,9.05]
[1726013179667,9.05,135.58,135.53,9.05]
[1726013180073,9.05,135.58,135.57,0.9]
[1726013182968,9.05,135.58,135.57,3.29]
[1726013188879,1.3681,135.59,135.5,0.67]
[1726013188880,9.05,135.55,135.5,0.67]
[1726013189169,9.05,135.53,135.5,0.67]
[1726013189475,9.05,135.51,135.5,0.67]
[1726013192570,9.05,135.52,135.5,0.67]
[1726013194775,9.05,135.52,135.5,5.14]
[1726013196769,5.02640571,135.59,135.5,5.14]
[1726013197076,9.05,135.53,135.5,5.14]
[1726013199170,9.05,135.52,135.5,5.14]
[1726013202875,9.05,135.51,135.5,5.14]
[1726013210283,5.02640571,135.59,135.5,5.14]
[1726013210489,9.05,135.55,135.5,5.14]
[1726013210687,9.05,135.53,135.5,5.14]
[1726013212879,9.05,135.55,135.5,5.14]
[1726013213389,9.05,135.53,135.5,5.14]
[1726013214983,9.05,135.52,135.5,5.14]
[1726013215187,9.05,135.51,135.5,5.14]
[1726013220400,5.02640571,135.59,135.5,5.14]
[1726013220700,9.05,135.51,135.5,5.14]
[1726013221306,1.3669,135.54,135.5,5.14]
[1726013221505,116.67981347,135.55,135.5,5.14]
[1726013221706,125.72981347,135.55,135.5,14.19]
[1726013221905,116.67981347,135.55,135.5,14.19]
[1726013222104,116.67981347,135.55,135.51,9.05]
[1726013222303,9.05,135.59,135.52,9.05]
[1726013222511,9.05,135.59,135.53,3.689]
[1726013222810,9.05,135.63,135.57,9.05]
[1726013223709,9.05,135.61,135.48,4.1105]
[1726013223913,9.05,135.58,135.48,4.1105]
[1726013224114,9.05,135.58,135.52,9.05]
[1726013224413,9.05,135.58,135.48,4.1105]
[1726013224414,9.05,135.58,135.53,9.05]
[1726013224804,9.05,135.61,135.54,9.05]
[1726013225208,9.05,135.61,135.56,9.05]
[1726013225412,9.05,135.62,135.56,9.05]
[1726013225805,9.05,135.62,135.56,9.72]
[1726013230809,9.05,135.62,135.56,14.18]
[1726013231814,4.0092,135.66,135.56,5.13]
[1726013231815,9.05,135.59,135.56,5.13]
[1726013233124,9.05,135.61,135.56,5.13]
[1726013234019,9.05,135.59,135.56,5.13]
[1726013237220,9.05,135.58,135.56,5.13]
[1726013237423,9.05,135.57,135.56,5.13]
[1726013240728,9.05,135.57,135.49,2.8117]
[1726013240926,2.7307,135.59,135.49,2.8117]
[1726013240927,9.05,135.52,135.49,2.8117]
[1726013241230,9.05,135.53,135.49,2.8117]
[1726013242323,9.05,135.54,135.49,2.8117]
[1726013242528,9.05,135.56,135.5,9.05]
[1726013243024,9.05,135.54,135.49,2.8117]
[1726013247926,9.05,135.54,135.47,16.4624484]
[1726013248331,9.05,135.54,135.47,9.05]
[1726013248731,9.05,135.53,135.47,9.05]
[1726013249229,9.05,135.53,135.47,10.4248]
[1726013249430,1.3346,135.58,135.49,9.05]
[1726013249634,1.3346,135.58,135.5,9.05]
[1726013249827,9.05,135.56,135.5,9.05]
[1726013250025,1.3346,135.58,135.5,9.05]
[1726013250334,9.05,135.55,135.49,9.05]
[1726013250634,9.05,135.54,135.49,9.05]
[1726013251224,1.3346,135.58,135.48,1.346]
[1726013251434,9.05,135.55,135.49,9.05]
[1726013251637,1.3346,135.58,135.5,9.05]
[1726013251835,9.05,135.56,135.5,9.05]
[1726013252236,9.05,135.55,135.48,10.396]
[1726013254036,9.05,135.54,135.48,10.396]
[1726013255641,9.05,135.52,135.41,1.2926]
[1726013255840,9.05,135.52,135.45,9.05]
[1726013256229,9.05,135.52,135.45,12.741]
[1726013257439,1.3346,135.58,135.45,12.741]
[1726013257744,1.09170759,135.57,135.47,9.05]
[1726013257940,9.05,135.54,135.47,9.05]
[1726013258535,9.05,135.54,135.48,9.05]
[1726013258841,9.05,135.54,135.48,12.7403]
[1726013259039,9.05,135.54,135.48,9.05]
[1726013262446,1.3346,135.58,135.48,12.7403]
[1726013262644,9.05,135.54,135.48,14.0976]
[1726013262844,1.3346,135.58,135.49,9.05]
[1726013263041,9.05,135.57,135.51,9.05]
[1726013266850,9.05,135.57,135.49,1.2988]
[1726013267049,9.05,135.56,135.5,9.05]
[1726013268942,9.05,135.56,135.5,12.7398]
[1726013276057,9.05,135.56,135.51,3.6895]
[1726013276249,9.05,135.57,135.51,12.7395]
[1726013276555,9.05,135.57,135.51,9.05]
[1726013278753,1.3346,135.58,135.51,9.05]
[1726013278956,2.7307,135.59,135.53,9.05]
[1726013279154,2.7307,135.59,135.55,9.05]
[1726013281758,2.7307,135.59,135.52,3.6891]
[1726013281958,9.05,135.57,135.49,1.2988]